bitfinex/quotes_BTCUSD_20250218
["timestamp","ask_amount","ask_price","bid_price","bid_amount"]
[1739890186080,0.156422,95894.0,95887.0,0.10250365]
[1739890186285,0.156422,95894.0,95888.0,0.03125494]
[1739890186492,0.156422,95894.0,95889.0,0.10250365]
[1739890186708,0.156429,95890.0,95889.0,0.10250365]
[1739890186927,0.21925035,95900.0,95889.0,0.10250365]
[1739890187180,0.156422,95895.0,95889.0,0.10250365]
[1739890187380,0.01634664,95904.0,95889.0,0.10250365]
[1739890187590,0.156429,95890.0,95889.0,0.10250365]
[1739890187989,0.156429,95890.0,95886.0,0.00278098]
[1739890187990,0.156434,95887.0,95886.0,0.00278098]
[1739890188946,0.156434,95887.0,95886.0,0.00078098]
[1739890189486,0.306434,95887.0,95886.0,0.00178098]
[1739890190030,0.306434,95887.0,95886.0,0.00078098]
[1739890190634,0.83216247,95887.0,95886.0,0.00078098]
[1739890190869,1.280555,95887.0,95886.0,0.00078098]
[1739890191073,1.205798,95887.0,95886.0,0.00378098]
[1739890191462,1.064395,95887.0,95886.0,0.00378098]
[1739890191656,0.834592,95887.0,95886.0,0.00378098]
[1739890191863,0.690141,95887.0,95886.0,0.00378098]
[1739890193888,0.713141,95887.0,95886.0,0.00378098]
[1739890194091,0.713141,95887.0,95882.0,0.0003404]
[1739890194092,0.173,95886.0,95882.0,7.8e-07]
[1739890194295,0.32944,95883.0,95882.0,7.8e-07]
[1739890194454,0.43194365,95883.0,95882.0,7.8e-07]
[1739890194703,0.5344473,95883.0,95882.0,7.8e-07]
[1739890195043,0.56323953,95883.0,95882.0,7.8e-07]
[1739890195252,0.173,95882.0,95877.0,4.8e-07]
[1739890195454,0.173,95882.0,95871.0,4.8e-07]
[1739890195455,0.378358,95872.0,95871.0,4.8e-07]
[1739890195655,0.48086165,95872.0,95871.0,4.8e-07]
[1739890195843,0.61215753,95872.0,95871.0,4.8e-07]
[1739890196296,0.306476,95861.0,95860.0,8.8e-07]
[1739890196516,0.43197965,95861.0,95860.0,8.8e-07]
[1739890197153,0.44833583,95861.0,95860.0,8.8e-07]
[1739890197802,0.29833583,95861.0,95860.0,8.8e-07]
[1739890198215,0.19583218,95861.0,95860.0,8.8e-07]
[1739890198431,0.17283218,95861.0,95860.0,8.8e-07]
[1739890198830,0.17283218,95861.0,95860.0,0.00200088]
[1739890199588,0.17283218,95861.0,95860.0,8.8e-07]
[1739890199795,0.17283218,95861.0,95860.0,0.00200088]
[1739890200263,0.01635618,95861.0,95860.0,8.8e-07]
[1739890200474,0.21925035,95880.0,95860.0,0.10450453]
[1739890200683,0.156476,95861.0,95860.0,0.00200088]
[1739890201520,0.30777997,95861.0,95860.0,0.00200088]
[1739890201725,3.35635365,95861.0,95860.0,0.00200088]
[1739890201930,3.57203062,95861.0,95860.0,8.8e-07]
[1739890202153,0.55083827,95861.0,95860.0,0.00200088]
[1739890202360,0.55083827,95861.0,95845.0,4.8e-07]
[1739890202361,0.306501,95846.0,95845.0,4.8e-07]
[1739890202574,0.56442125,95846.0,95845.0,4.8e-07]
[1739890203383,0.64021348,95846.0,95845.0,4.8e-07]
[1739890203841,0.64021348,95846.0,95845.0,0.00013256]
[1739890203981,0.64021348,95846.0,95845.0,5.6e-07]
[1739890204155,0.66021348,95846.0,95845.0,5.6e-07]
[1739890204355,0.63142125,95846.0,95845.0,5.6e-07]
[1739890204621,0.66021348,95846.0,95845.0,5.6e-07]
[1739890204773,0.306523,95832.0,95798.0,0.0001702]
[1739890204971,7.40850965,95832.0,95831.0,0.00053204]
[1739890205233,6.89419065,95832.0,95831.0,0.00053204]
[1739890205438,6.84343349,95832.0,95831.0,0.00053204]
[1739890205634,6.39379849,95832.0,95831.0,0.00053204]
[1739890205857,6.33098464,95832.0,95831.0,0.00053204]
[1739890206069,6.33009404,95832.0,95831.0,4e-08]
[1739890206222,0.50210004,95832.0,95831.0,4e-08]
[1739890206432,0.52165474,95832.0,95831.0,4e-08]
[1739890206644,0.55553159,95832.0,95831.0,4e-08]
[1739890207303,1.15698969,95832.0,95831.0,4e-08]
[1739890207455,1.18731257,95832.0,95831.0,4e-08]
[1739890208066,1.15852034,95832.0,95831.0,4e-08]
[1739890208481,5.370674,95831.0,95798.0,0.0001702]
[1739890208699,0.81487626,95832.0,95798.0,0.0001702]
[1739890208700,0.21925035,95810.0,95798.0,0.0003018]
[1739890208956,0.156577,95799.0,95798.0,0.0003018]
[1739890209154,0.356968,95799.0,95798.0,0.0003018]
[1739890209365,0.23561359,95810.0,95798.0,0.0003018]
[1739890209583,1.163431,95809.0,95798.0,0.02124938]
[1739890209819,0.924299,95809.0,95798.0,0.0003018]
[1739890210035,0.01636324,95810.0,95798.0,0.0003018]
[1739890210244,0.156577,95799.0,95798.0,0.0003018]
[1739890210450,0.768704,95799.0,95798.0,0.0003018]
[1739890210646,0.546039,95799.0,95798.0,0.0003018]
[1739890210876,0.91640994,95799.0,95798.0,0.0003018]
[1739890211087,0.82005304,95799.0,95798.0,0.0003018]
[1739890211505,0.47844904,95799.0,95798.0,0.0003018]
[1739890211710,0.42654904,95799.0,95798.0,0.0063018]
[1739890211907,0.11997204,95799.0,95798.0,0.0003018]
[1739890212160,0.01636404,95799.0,95798.0,0.0063018]
[1739890212395,0.157577,95799.0,95798.0,0.0063018]
[1739890212838,0.83296,95799.0,95798.0,0.0063018]
[1739890213042,2.717081,95799.0,95798.0,0.0063018]
[1739890213247,3.527478,95799.0,95798.0,0.0063018]
[1739890213451,3.799861,95799.0,95798.0,0.0063018]
[1739890213683,3.822861,95799.0,95798.0,0.0063018]
[1739890213898,4.0278683,95799.0,95798.0,0.0063018]
[1739890214511,4.0731683,95799.0,95798.0,0.0063018]
[1739890214734,0.306589,95792.0,95791.0,0.0004]
[1739890214938,7.36623665,95792.0,95791.0,0.0004]
[1739890215136,8.24138365,95792.0,95791.0,0.0004]
[1739890215347,8.11675662,95792.0,95791.0,0.0004]
[1739890215748,8.01425297,95792.0,95791.0,0.0004]
[1739890215962,7.90926897,95792.0,95791.0,0.0004]
[1739890216194,7.9390612,95792.0,95791.0,0.0004]
[1739890216395,7.96634744,95792.0,95791.0,0.0004]
[1739890216596,7.9390612,95792.0,95791.0,0.0004]
[1739890216806,8.01277262,95792.0,95791.0,0.0004]
[1739890217005,5.09378497,95792.0,95791.0,0.0004]
[1739890217235,3.94669497,95792.0,95791.0,0.0004]
[1739890217856,3.9754872,95792.0,95791.0,0.0004]
[1739890218269,3.94669497,95792.0,95791.0,0.0004]
[1739890218691,3.9754872,95792.0,95791.0,0.0004]
[1739890219068,4.04919862,95792.0,95791.0,0.0004]
[1739890221260,4.04919862,95792.0,95790.0,0.0001703]
[1739890221261,0.22179223,95791.0,95790.0,3e-07]
[1739890221563,8.68761965,95791.0,95790.0,3e-07]
[1739890221793,0.27550365,95791.0,95790.0,3e-07]
[1739890223205,0.28150365,95791.0,95790.0,3e-07]
[1739890223602,0.31029588,95791.0,95790.0,3e-07]
[1739890223963,0.47107088,95791.0,95790.0,3e-07]
[1739890224764,0.46507088,95791.0,95790.0,3e-07]
[1739890224996,0.56757453,95791.0,95790.0,3e-07]
[1739890225193,0.60994072,95791.0,95790.0,3e-07]
[1739890225424,0.60394072,95791.0,95790.0,3e-07]
[1739890225623,0.58394072,95791.0,95790.0,3e-07]
[1739890225840,0.45964484,95791.0,95790.0,3e-07]
[1739890226361,0.17995619,95791.0,95790.0,3e-07]
[1739890226565,0.15659,95791.0,95790.0,3e-07]
[1739890226794,0.41039872,95791.0,95790.0,3e-07]
[1739890227039,0.306615,95776.0,95751.0,0.0004]
[1739890227242,0.306633,95765.0,95751.0,0.0004]
[1739890227449,0.380492,95765.0,95751.0,0.0004]
[1739890228103,0.306633,95765.0,95751.0,0.0004]
[1739890228298,2.587314,95765.0,95751.0,0.0004]
[1739890228703,2.68994913,95765.0,95751.0,0.0004]
[1739890228915,2.58744548,95765.0,95751.0,0.0004]
[1739890229325,1.51238339,95765.0,95751.0,0.0004]
[1739890229499,1.14757139,95765.0,95751.0,0.0004]
[1739890229844,1.72312039,95765.0,95751.0,0.0004]
[1739890230052,2.99641439,95765.0,95751.0,0.0004]
[1739890230306,1.07584039,95765.0,95751.0,0.0004]
[1739890230509,0.75939439,95765.0,95751.0,0.0004]
[1739890230660,0.63986539,95765.0,95751.0,0.0004]
[1739890230882,1.27062825,95765.0,95751.0,0.0004]
[1739890231084,4.39496725,95765.0,95751.0,0.0004]
[1739890231298,5.84226525,95765.0,95751.0,0.0004]
[1739890231498,6.21112725,95765.0,95751.0,0.0004]
[1739890231739,5.64141739,95765.0,95751.0,0.0004]
[1739890231936,2.33412539,95765.0,95751.0,0.0004]
[1739890232818,2.31775848,95765.0,95751.0,0.0004]
[1739890233449,2.31775848,95765.0,95678.0,0.02]
[1739890233450,0.02,95726.0,95678.0,0.02]
[1739890233658,0.21925035,95710.0,95685.0,0.06376199]
[1739890233864,0.23925035,95710.0,95685.0,0.03136467]
[1739890234063,0.23925035,95710.0,95671.0,0.0204]
[1739890234064,0.02,95695.0,95671.0,0.0004]
[1739890234279,0.21925035,95700.0,95571.0,0.01083838]
[1739890234280,0.02,95609.0,95571.0,0.01083838]
[1739890234484,0.988448,95609.0,95556.0,0.0462]
[1739890234685,0.502434,95609.0,95556.0,0.0462]
[1739890234894,0.02,95609.0,95574.0,0.20926]
[1739890235014,0.043,95609.0,95562.0,0.02]
[1739890235230,1.14016725,95609.0,95568.0,0.209274]
[1739890235425,1.14016725,95609.0,95556.0,0.0462]
[1739890235635,1.13103665,95609.0,95577.0,0.209255]
[1739890235834,0.91948964,95609.0,95586.0,0.209233]
[1739890236039,0.16289764,95609.0,95608.0,0.65689]
[1739890236283,0.14650365,95609.0,95608.0,0.50043876]
[1739890236485,0.02,95609.0,95608.0,0.50043876]
[1739890237061,0.02,95650.0,95608.0,0.50043876]
[1739890237062,0.02,95620.0,95619.0,0.156872]
[1739890237357,0.02,95621.0,95619.0,0.156872]
[1739890237516,0.02,95621.0,95620.0,0.3500742]
[1739890237722,0.02,95640.0,95620.0,0.45257785]
[1739890237926,0.02,95640.0,95639.0,0.334387]
[1739890238126,0.02,95628.0,95621.0,0.10250365]
[1739890238537,0.02,95628.0,95627.0,0.156859]
[1739890238735,0.22547502,95655.0,95627.0,0.10250365]
[1739890238736,0.02,95637.0,95627.0,0.10250365]
[1739890238994,0.02,95637.0,95636.0,0.156844]
[1739890239339,0.02,95637.0,95635.0,0.156845]
[1739890239528,0.02,95637.0,95636.0,0.00043876]
[1739890240064,0.02,95645.0,95637.0,0.209124]
[1739890240273,0.01638902,95655.0,95637.0,0.10250365]
[1739890240274,0.02,95644.0,95637.0,0.10250365]
[1739890240477,0.02,95640.0,95636.0,0.00043876]
[1739890240886,0.02,95637.0,95636.0,0.00043876]
[1739890241366,0.00940124,95627.0,95626.0,0.156861]
[1739890241640,0.00940124,95627.0,95626.0,0.3618683]
[1739890242106,0.02,95649.0,95648.0,0.156825]
[1739890242320,0.02,95649.0,95646.0,0.209103]
[1739890242321,0.02,95646.0,95637.0,0.334387]
[1739890242535,0.02,95666.0,95665.0,0.156797]
[1739890242740,0.02,95670.0,95650.0,0.67510741]
[1739890242943,0.02,95661.0,95651.0,0.10250365]
[1739890243281,0.02,95661.0,95660.0,0.156805]
[1739890243705,0.02,95671.0,95662.0,0.209069]
[1739890243924,0.02,95671.0,95670.0,0.156788]
[1739890244265,0.02,95671.0,95668.0,0.156791]
[1739890244470,0.02,95671.0,95670.0,0.156788]
[1739890244668,0.02,95671.0,95654.0,0.209086]
[1739890244867,0.02,95659.0,95650.0,5.539e-05]
[1739890245071,0.02,95671.0,95670.0,0.156788]
[1739890245274,0.02,95671.0,95651.0,0.334387]
[1739890245275,0.02,95666.0,95665.0,0.156797]
[1739890245905,0.02,95676.0,95675.0,0.15678]
[1739890246115,0.02,95676.0,95671.0,0.209048]
[1739890246382,0.02,95651.0,95650.0,0.00022599]
[1739890246587,0.02,95651.0,95650.0,0.15704699]
[1739890246792,0.02,95656.0,95650.0,0.00022599]
[1739890246994,0.02,95663.0,95662.0,0.1568]
[1739890247141,0.02,95663.0,95661.0,0.156803]
[1739890247346,0.02,95666.0,95665.0,0.156797]
[1739890247581,0.02,95669.0,95660.0,0.0209074]
[1739890247815,0.02,95669.0,95668.0,0.156792]
[1739890248151,0.02,95673.0,95671.0,0.156787]
[1739890248352,0.02,95681.0,95673.0,0.209044]
[1739890248598,0.02,95681.0,95680.0,0.156772]
[1739890248823,0.02,95685.0,95684.0,0.156766]
[1739890249040,0.02,95692.0,95684.0,0.13385745]
[1739890249178,0.02,95692.0,95691.0,0.156754]
[1739890249391,0.02,95692.0,95685.0,0.10250365]
[1739890249586,0.02,95687.0,95674.0,0.209041]
[1739890249811,0.02,95687.0,95678.0,0.209032]
[1739890250066,0.02,95692.0,95690.0,0.156756]
[1739890250499,0.02,95693.0,95679.0,0.10250365]
[1739890250713,0.02,95701.0,95700.0,0.156739]
[1739890250920,0.02,95701.0,95692.0,0.209003]
[1739890251122,0.02,95693.0,95671.0,0.076]
[1739890251333,0.02,95693.0,95691.0,0.156753]
[1739890251743,0.00013141,95702.0,95701.0,0.156738]
[1739890251957,0.02,95699.0,95691.0,0.10250365]
[1739890252716,0.02,95699.0,95692.0,0.209003]
[1739890252929,0.02,95699.0,95696.0,0.156744]
[1739890253236,0.02,95699.0,95657.0,0.0486]
[1739890253237,0.209036,95677.0,95657.0,0.0486]
[1739890253437,0.02,95675.0,95659.0,0.209075]
[1739890253637,0.02,95677.0,95676.0,0.156779]
[1739890253996,0.02,95677.0,95674.0,0.156781]
[1739890254175,0.02,95663.0,95650.0,0.0001706]
[1739890254458,0.02,95651.0,95650.0,0.0001706]
[1739890254641,0.02,95664.0,95659.0,0.156806]
[1739890254812,0.02,95654.0,95653.0,0.156816]
[1739890255039,0.02,95660.0,95650.0,0.0001706]
[1739890255252,0.02,95660.0,95659.0,0.156806]
[1739890255449,0.02,95660.0,95658.0,0.156808]
[1739890255762,0.02,95660.0,95659.0,0.156806]
[1739890255960,0.02,95660.0,95656.0,0.20908]
[1739890256165,0.02,95660.0,95651.0,0.10250365]
[1739890256405,0.02,95660.0,95659.0,0.156806]
[1739890256599,0.02,95671.0,95659.0,0.10250365]
[1739890256843,0.02,95671.0,95661.0,0.209071]
[1739890257045,0.01638375,95675.0,95674.0,0.156782]
[1739890257237,0.02,95674.0,95662.0,0.10250365]
[1739890257674,0.02,95672.0,95662.0,0.10250365]
[1739890257852,0.023,95699.0,95650.0,0.00022599]
[1739890258052,0.023,95689.0,95651.0,0.10250365]
[1739890258187,0.34072041,95680.0,95650.0,0.00022599]
[1739890258394,0.156807,95659.0,95653.0,0.156815]
[1739890258592,0.156807,95659.0,95650.0,0.00022599]
[1739890258593,0.156791,95669.0,95654.0,0.10250365]
[1739890258807,0.209049,95672.0,95662.0,0.156802]
[1739890259020,0.156787,95672.0,95664.0,0.156797]
[1739890259228,0.08363783,95706.0,95675.0,0.15678]
[1739890259445,0.156811,95656.0,95655.0,0.01027296]
[1739890259647,0.08363783,95696.0,95627.0,0.0001703]
[1739890259648,0.15682,95651.0,95627.0,0.0001703]
[1739890259851,0.15681,95658.0,95649.0,0.209095]
[1739890260065,0.10250365,95692.0,95639.0,0.209117]
[1739890260066,0.023,95687.0,95639.0,0.209117]
[1739890260263,0.023,95679.0,95627.0,0.0001703]
[1739890260466,0.34072041,95670.0,95627.0,0.0001703]
[1739890260677,0.392312,95669.0,95628.0,0.00104556]
[1739890260880,0.256,95695.0,95627.0,0.0001703]
[1739890260881,1.4630397,95684.0,95651.0,0.10250365]
[1739890261095,0.10250365,95694.0,95652.0,0.0010453]
[1739890261315,0.143539,95693.0,95654.0,0.31363]
[1739890261529,0.136399,95698.0,95682.0,0.156767]
[1739890261738,0.10250365,95697.0,95655.0,0.19363726]
[1739890261951,0.10250365,95697.0,95673.0,0.156782]
[1739890261952,0.156774,95680.0,95673.0,0.156782]
[1739890262170,0.13917761,95697.0,95656.0,0.00729075]
[1739890262376,0.15,95695.0,95674.0,0.0072466]
[1739890262608,1.02802972,95694.0,95657.0,0.10250365]
[1739890262838,1.760727,95693.0,95657.0,0.10250365]
[1739890263048,0.00013141,95695.0,95658.0,0.01129557]
[1739890263254,0.00013141,95695.0,95694.0,0.156749]
[1739890263500,0.00013141,95695.0,95658.0,0.01129557]
[1739890263501,0.209023,95684.0,95668.0,0.10250365]
[1739890263700,0.15687941,95695.0,95694.0,0.00719757]
[1739890264049,2.08711241,95695.0,95673.0,0.156783]
[1739890264260,0.156778,95677.0,95658.0,0.01025037]
[1739890264434,1.64323065,95694.0,95658.0,0.10250365]
[1739890264435,0.10250365,95694.0,95658.0,0.10250365]
[1739890264666,0.023,95679.0,95641.0,0.0758]
[1739890264866,0.023,95677.0,95636.0,0.0489]
[1739890264996,0.023,95677.0,95631.0,0.08363783]
[1739890264997,0.023,95675.0,95641.0,0.209114]
[1739890265200,0.34072041,95680.0,95631.0,0.08363783]
[1739890265201,1.548461,95674.0,95631.0,0.08363783]
[1739890265406,0.156793,95667.0,95651.0,0.10250365]
[1739890265609,0.023,95685.0,95657.0,0.156808]
[1739890265808,0.156797,95665.0,95658.0,0.156807]
[1739890266033,0.10250365,95684.0,95658.0,0.00728807]
[1739890266233,0.38872041,95700.0,95658.0,0.00728807]
[1739890266234,0.048,95700.0,95659.0,0.12518668]
[1739890266794,0.209004,95692.0,95660.0,0.21636257]
[1739890266994,0.156761,95688.0,95661.0,0.10250365]
[1739890267209,0.156762,95687.0,95661.0,0.10979177]
[1739890267414,0.156762,95687.0,95679.0,0.156772]
[1739890267652,0.11249272,95686.0,95661.0,0.10979177]
[1739890267851,0.15677,95681.0,95680.0,0.00724152]
[1739890268054,0.209024,95683.0,95664.0,0.209065]
[1739890268264,0.00143113,95696.0,95672.0,0.156784]
[1739890268265,0.00129972,95695.0,95672.0,0.156784]
[1739890268466,0.00129972,95695.0,95665.0,0.15566573]
[1739890268467,0.023,95689.0,95665.0,0.00727831]
[1739890268642,0.156764,95685.0,95673.0,0.00725869]
[1739890268780,0.023,95689.0,95641.0,0.29275283]
[1739890268781,0.209023,95683.0,95670.0,0.209051]
[1739890269021,0.01638206,95701.0,95674.0,0.00724604]
[1739890269249,0.01638206,95701.0,95675.0,0.10354883]
[1739890269451,0.0459,95718.0,95695.0,0.156748]
[1739890269666,0.208969,95708.0,95695.0,0.1724228]
[1739890269873,0.208969,95708.0,95695.0,0.17962087]
[1739890270272,0.208991,95698.0,95695.0,0.00719807]
[1739890270476,0.15817713,95696.0,95695.0,0.00719807]
[1739890270684,0.20912641,95696.0,95677.0,0.156777]
[1739890270885,0.20912641,95696.0,95665.0,0.0764]
[1739890270886,0.156759,95688.0,95681.0,0.156769]
[1739890271082,0.156759,95688.0,95678.0,0.10250365]
[1739890271083,0.00013141,95696.0,95678.0,0.00723249]
[1739890271291,1.24017289,95695.0,95650.0,0.0001706]
[1739890271495,0.15682,95651.0,95650.0,0.0001706]
[1739890271696,0.23292,95651.0,95650.0,6e-07]
[1739890271905,0.23292,95651.0,95613.0,0.02199404]
[1739890271906,0.306857,95628.0,95613.0,0.02199404]
[1739890272112,0.289969,95628.0,95613.0,0.02199404]
[1739890272316,0.13066748,95651.0,95613.0,0.02199404]
[1739890272518,0.0497,95659.0,95614.0,0.00104583]
[1739890272741,2.63950437,95658.0,95623.0,0.156865]
[1739890272962,0.023,95649.0,95627.0,0.00022569]
[1739890273162,0.209119,95639.0,95627.0,0.00022569]
[1739890273388,0.15,95651.0,95627.0,0.00022569]
[1739890273389,0.63766441,95670.0,95627.0,0.00022569]
[1739890273591,0.209111,95643.0,95627.0,0.00022569]
[1739890273766,0.023,95641.0,95627.0,0.00022569]
[1739890273969,0.157672,95640.0,95627.0,0.00022569]
[1739890274190,0.156833,95643.0,95628.0,0.209143]
[1739890274394,0.15,95656.0,95627.0,0.00022569]
[1739890274395,0.023,95641.0,95627.0,0.00022569]
[1739890274598,0.156857,95629.0,95627.0,0.00022569]
[1739890275244,0.209106,95646.0,95627.0,0.00022569]
[1739890275459,0.258776,95659.0,95627.0,0.00022569]
[1739890275460,0.971854,95645.0,95627.0,0.00022569]
[1739890275666,0.10250365,95645.0,95627.0,0.00022569]
[1739890275870,0.156847,95635.0,95627.0,0.00022569]
[1739890276081,0.15,95658.0,95627.0,0.10272934]
[1739890276289,0.01638985,95649.0,95627.0,0.00022569]
[1739890276489,0.212068,95648.0,95628.0,0.10250365]
[1739890276693,0.01638985,95649.0,95628.0,0.10250365]
[1739890276898,0.991647,95648.0,95629.0,0.00535275]
[1739890277117,0.00129972,95648.0,95627.0,0.00022569]
[1739890277324,1.348961,95647.0,95630.0,0.00534934]
[1739890277533,0.156852,95632.0,95627.0,0.00022569]
[1739890277730,0.156849,95633.0,95627.0,0.00022569]
[1739890277971,0.023,95647.0,95628.0,0.156857]
[1739890278184,0.15685,95633.0,95627.0,0.00022569]
[1739890278386,0.209103,95647.0,95628.0,0.00535639]
[1739890278588,0.01638849,95657.0,95628.0,0.10786004]
[1739890278791,0.66318,95656.0,95628.0,0.10250365]
[1739890279012,0.66318,95656.0,95627.0,0.00022569]
[1739890279013,0.01638849,95657.0,95629.0,0.11277658]
[1739890279232,0.156809,95658.0,95649.0,0.156821]
[1739890279638,0.121392,95657.0,95630.0,0.08363783]
[1739890279768,0.01638702,95669.0,95650.0,0.0053204]
[1739890279769,0.156816,95654.0,95650.0,0.0053204]
[1739890279949,0.01013188,95668.0,95651.0,0.209093]
[1739890280161,0.023,95667.0,95651.0,0.00531814]
[1739890280356,0.209062,95665.0,95631.0,0.12270314]
[1739890280602,0.433172,95664.0,95631.0,0.12270314]
[1739890280803,0.00129972,95663.0,95633.0,0.209132]
[1739890280962,0.156807,95659.0,95651.0,0.156818]
[1739890281165,0.023,95668.0,95634.0,0.10250365]
[1739890281368,0.843451,95667.0,95634.0,0.10250365]
[1739890281591,0.01638702,95669.0,95634.0,0.10250365]
[1739890281592,0.01638702,95669.0,95666.0,0.156794]
[1739890281780,0.01638702,95669.0,95635.0,0.0010455]
[1739890281988,0.01638702,95669.0,95630.0,0.08363783]
[1739890281989,0.118945,95668.0,95640.0,0.08363783]
[1739890282195,0.0502406,95699.0,95652.0,0.08363783]
[1739890282396,0.0502406,95699.0,95674.0,0.156781]
[1739890282397,0.156769,95682.0,95674.0,0.156781]
[1739890282597,0.156769,95682.0,95653.0,0.10354894]
[1739890282598,0.108206,95681.0,95675.0,0.0156781]
[1739890282810,0.156758,95689.0,95681.0,0.15677]
[1739890283017,0.208997,95695.0,95676.0,0.16230011]
[1739890283018,0.156768,95683.0,95676.0,0.16230011]
[1739890283223,0.00129972,95694.0,95682.0,0.0055123]
[1739890283429,0.156763,95686.0,95672.0,0.209045]
[1739890283638,0.156763,95686.0,95584.0,0.05296924]
[1739890283639,0.01047328,95696.0,95683.0,0.00550263]
[1739890283847,1.29543437,95695.0,95645.0,0.209106]
[1739890284048,0.156764,95685.0,95684.0,0.00550099]
[1739890284350,2.061022,95685.0,95653.0,0.11852743]
[1739890284519,0.156782,95675.0,95667.0,0.156793]
[1739890284741,0.023,95694.0,95653.0,0.11852743]
[1739890285068,0.156777,95678.0,95669.0,0.15679]
[1739890285273,0.156777,95678.0,95654.0,0.04146726]
[1739890285274,0.01638234,95696.0,95670.0,0.10250365]
[1739890285482,0.291284,95695.0,95670.0,0.10801116]
[1739890285687,0.453456,95694.0,95670.0,0.10801116]
[1739890285797,0.156764,95686.0,95678.0,0.156775]
[1739890286004,0.01638234,95696.0,95671.0,0.01630844]
[1739890286202,0.01638234,95696.0,95679.0,0.00549424]
[1739890286203,0.209015,95687.0,95679.0,0.00549424]
[1739890286408,0.156762,95686.0,95679.0,0.156774]
[1739890286621,0.156766,95684.0,95680.0,0.0054926]
[1739890286833,0.156766,95684.0,95677.0,0.156777]
[1739890287075,0.209015,95687.0,95681.0,0.00549097]
[1739890287277,0.156764,95685.0,95678.0,0.156775]
[1739890287454,0.156763,95686.0,95682.0,0.00548934]
[1739890287661,0.22537734,95696.0,95672.0,0.10250365]
[1739890287662,0.01638234,95696.0,95672.0,0.10250365]
[1739890287957,0.129237,95695.0,95683.0,0.0054877]
[1739890288133,0.01638234,95696.0,95683.0,0.10250365]
[1739890288332,0.0003404,95700.0,95684.0,0.10354869]
[1739890288633,0.0003404,95700.0,95684.0,0.10798523]
[1739890288833,0.803186,95698.0,95684.0,0.00548158]
[1739890288989,0.156761,95688.0,95675.0,0.20904]
[1739890289195,0.20946101,95699.0,95685.0,0.00547995]
[1739890289196,0.156756,95691.0,95685.0,0.00547995]
[1739890289378,0.00047201,95699.0,95682.0,0.209023]
[1739890289579,0.156762,95686.0,95683.0,0.00548322]
[1739890289779,0.156757,95689.0,95683.0,0.156767]
[1739890289983,0.156761,95687.0,95684.0,0.00548158]
[1739890290338,0.156761,95687.0,95680.0,0.156771]
[1739890290497,0.156758,95689.0,95685.0,0.00547995]
[1739890290699,0.156767,95684.0,95677.0,0.156775]
[1739890290888,0.156761,95687.0,95686.0,0.00547832]
[1739890291087,0.156766,95684.0,95678.0,0.20569747]
[1739890291282,0.00047201,95699.0,95678.0,0.04892247]
[1739890291529,0.156772,95680.0,95679.0,0.00548976]
[1739890291933,0.156772,95680.0,95639.0,0.02]
[1739890291934,0.00129972,95680.0,95649.0,0.156821]
[1739890292136,0.00129972,95680.0,95656.0,0.156811]
[1739890292137,0.156799,95664.0,95656.0,0.156811]
[1739890292316,0.20906,95667.0,95657.0,0.28524311]
[1739890292528,0.023,95679.0,95657.0,0.00552165]
[1739890292732,0.156808,95658.0,95657.0,0.00552165]
[1739890292973,0.156827,95647.0,95639.0,0.156838]
[1739890293142,0.15682,95651.0,95643.0,0.156832]
[1739890293349,0.22070191,95670.0,95644.0,0.10250365]
[1739890293550,2.85806172,95669.0,95644.0,0.10250365]
[1739890293753,0.209081,95657.0,95644.0,0.25933465]
[1739890293957,0.156819,95652.0,95644.0,0.10250365]
[1739890294114,0.209081,95657.0,95644.0,0.10250365]
[1739890294319,0.209066,95664.0,95644.0,0.10250365]
[1739890294526,0.119994,95663.0,95644.0,0.10250365]
[1739890294768,0.209066,95664.0,95646.0,0.156826]
[1739890295090,0.156817,95653.0,95646.0,0.156826]
[1739890295293,0.209043,95674.0,95643.0,0.20916439]
[1739890295294,0.209023,95683.0,95663.0,0.156799]
[1739890295503,1.16090465,95682.0,95647.0,0.14935305]
[1739890295654,0.156803,95662.0,95648.0,0.2091]
[1739890296004,0.023,95679.0,95649.0,0.10250365]
[1739890296209,0.10250365,95678.0,95644.0,0.0001702]
[1739890296362,0.22070191,95660.0,95644.0,0.0001702]
[1739890296561,0.156829,95645.0,95644.0,0.0001702]
[1739890297539,0.22070191,95670.0,95644.0,0.00573931]
[1739890297722,0.209086,95655.0,95644.0,0.00573931]
[1739890297868,1.78900765,95668.0,95644.0,0.0001702]
[1739890297869,0.156823,95649.0,95644.0,0.0001702]
[1739890298087,0.209055,95669.0,95645.0,0.03661786]
[1739890298308,0.693757,95668.0,95646.0,0.31160665]
[1739890298516,0.10250365,95683.0,95646.0,0.10250365]
[1739890298737,0.22070191,95690.0,95646.0,0.10250365]
[1739890298738,0.217372,95682.0,95647.0,0.09025055]
[1739890298964,0.105401,95689.0,95658.0,0.0758]
[1739890299185,0.156765,95685.0,95659.0,0.10250365]
[1739890299416,0.156765,95685.0,95660.0,0.02282037]
[1739890299659,0.0003406,95699.0,95661.0,0.10250365]
[1739890299889,0.156743,95698.0,95688.0,0.209012]
[1739890300091,0.0003406,95699.0,95684.0,0.156764]
[1739890300289,0.573416,95698.0,95689.0,0.00627846]
[1739890300677,0.291798,95698.0,95661.0,0.10250365]
[1739890300853,0.400988,95698.0,95662.0,0.02847618]
[1739890301186,0.156757,95690.0,95664.0,0.156798]
[1739890301387,0.00013141,95698.0,95665.0,0.10250365]
[1739890301592,0.00013141,95698.0,95666.0,0.0243759]
[1739890301751,0.156758,95689.0,95667.0,0.10250365]
[1739890301966,0.15687441,95698.0,95685.0,0.209018]
[1739890302143,0.156761,95687.0,95686.0,0.00628336]
[1739890302910,0.00013141,95698.0,95686.0,0.00628336]
[1739890303207,0.156761,95687.0,95686.0,0.00628336]
[1739890303420,0.00013141,95698.0,95657.0,0.08363783]
[1739890303584,0.20912341,95698.0,95684.0,0.156764]
[1739890303764,0.00013141,95698.0,95685.0,0.00628499]
[1739890303966,0.00013141,95698.0,95683.0,0.156767]
[1739890304167,0.15687441,95698.0,95691.0,0.156753]
[1739890304526,0.00013141,95698.0,95692.0,0.00626104]
[1739890304730,0.00013141,95698.0,95697.0,0.156744]